Cogmind - Beta 13 @@@ ROGUE MODE // 2024.04.02 @ 23:25:25 Player: deadnoob Result: Destroyed by as-46371 with Assembled Blade Performance ------------- Evolutions (0) 0 Regions Visited (2) 400 Robots Destroyed (21) 105 Value Destroyed (740) 740 Prototype IDs (1) 20 Alien Tech Used (0) 0 Bonus (0) 0 TOTAL SCORE: 1265 Bonus ------- None Cogmind --------- Core Integrity 0/250 Matter 215/300 Energy 100/100 System Corruption 0% Temperature Cool (28) Movement Walking (120) Location -10/Mines Parts ------- > --- POWER (1) -------- (None) > --- PROPULSION (2) --- Aluminum Leg Aluminum Leg > --- UTILITY (2) ------ Medium Storage Unit Propulsion Shielding > --- WEAPON (2) ------- Light Cannon Light Cannon > --- INVENTORY (10) --- Ion Engine Light Treads Compact Wheel Large Battery (200) Thief Drone Bay (3/3) Assault Rifle Grenade Launcher Mining Laser Peak State ------------ > --- POWER ------------ Light Ion Engine > --- PROPULSION ------- Aluminum Leg Aluminum Leg > --- UTILITY ---------- Medium Storage Unit Thief Drone Bay > --- WEAPON ----------- Light Cannon Light Cannon > --- INVENTORY -------- Ion Engine Light Treads Compact Wheel Small Storage Unit Large Battery Propulsion Shielding Assault Rifle Light Cannon Grenade Launcher Mining Laser [Rating: 14] Favorites ----------- Power Light Ion Engine Engine Light Ion Engine Propulsion Aluminum Leg Leg Aluminum Leg Utility Propulsion Shielding Device Thief Drone Bay Storage Medium Storage Unit Processor Signal Interpreter Protection Propulsion Shielding Weapon Light Cannon Energy Gun Small Laser Ballistic Cannon Light Cannon Special Weapon Mining Laser Build | -11 -10 -10 ------- Run | Yrd Mat Min Slots Evolved . | . . . Power . | . . . Propulsion . | . . . Utility . | . . . Weapon . | . . . Parts Attached 11 | . 5 6 Power 1 | . . 1 Engine 1 | . . 1 Core . | . . . Reactor . | . . . Propulsion . | . . . Treads . | . . . Leg . | . . . Wheel . | . . . Hover . | . . . Flight . | . . . Utility 5 | . 3 2 Device 1 | . . 1 Storage 1 | . 1 . Processor 1 | . 1 . Hackware . | . . . Protection 2 | . 1 1 Artifact . | . . . Weapon 5 | . 2 3 Energy Gun . | . . . Energy Cannon . | . . . Ballistic Gun . | . . . Ballistic Cannon 4 | . 2 2 Launcher . | . . . Special Weapon 1 | . . 1 Impact Weapon . | . . . Slashing Weapon . | . . . Piercing Weapon . | . . . Special Melee Weapon . | . . . Unidentified Prototypes 1 | . . 1 Parts Lost 2 | . . 2 Power 1 | . . 1 Propulsion . | . . . Utility . | . . . Weapon 1 | . . 1 Highest Loss Streak 2 | . . 2 To Critical Strikes . | . . . Average Slot Usage (%) 98 | . 96 100 Engine 14 | . 14 14 Leg 28 | . 28 28 Storage 14 | . 14 14 Protection 11 | . 9 14 Energy Gun 1 | . 3 . Ballistic Cannon 25 | . 24 26 Naked Turns . | . . . Heaviest Build 22 | 11 20 22 Greatest Support 20 | 20 20 20 Greatest Overweight (x) 1 | . . 1 Average Overweight (x) . | . . . Largest Inventory Capacity 10 | . 10 10 Average Capacity 9 | . 8 10 Most Carried 10 | . 9 10 Average Carried 8 | . 8 8 Final Capacity 10 | 8 10 10 Final Carried 9 | 6 9 8 Class Distribution -------------------- 100% | Mutant Dominant Class ---------------- Mutant | -10/Materials Mutant | -10/Mines Resources | -11 -10 -10 ----------- Run | Yrd Mat Min Matter Collected 578 | 200 218 160 Remotely . | . . . Salvage Created 686 | . 395 291 Parts 44 | . 26 18 Haulers Intercepted 1 | . 1 . Recyclers Shooed . | . . . Parts Field Recycled . | . . . Retrieved Matter . | . . . Parts Self-Destructed . | . . . Prevented . | . . . Kills | -11 -10 -10 ------- Run | Yrd Mat Min Combat Hostiles Destroyed 18 | . 8 10 Cannons 18 | . 8 10 Classes Destroyed 4 | . 3 1 Hauler 1 | . 1 . Watcher 2 | . 2 . Grunt 16 | . 8 8 Sentry 2 | . . 2 Best Kill Streak 4 | . 3 4 Combat Bots Only 4 | . 3 4 Max Kills in Single Turn 1 | . 1 1 Gunslinging . | . . . Exploded . | . . . Melee . | . . . Uniques/NPCs Destroyed . | . . . Combat | -11 -10 -10 -------- Run | Yrd Mat Min Hostile Shots Fired 67 | . 20 47 Missed 19 | . 6 13 Damage Taken 747 | . 171 576 Core 267 | . 20 247 Absorbed by Shields . | . . . Redirected to Shielding 49 | . 12 37 Core Remaining (%) 100 | 100 . . Volleys Fired 66 | . 23 43 Largest 2 | . 2 2 Hottest 100 | . 70 100 Shots Fired 103 | . 46 57 Gun . | . . . Cannon 92 | . 46 46 Launcher . | . . . Special 11 | . . 11 Kinetic 92 | . 46 46 Thermal 11 | . . 11 Explosive . | . . . Electromagnetic . | . . . Robot Hit Streak 16 | . 7 16 Robot Miss Streak 3 | . 3 3 Penetration Max . | . . . Secondary Targets . | . . . Shots Hit Robots 59 | . 21 38 Core Hits 28 | . 13 15 Critical Kills . | . . . Critical Parts Destroyed . | . . . Critical Strikes 4 | . . 4 Blast 4 | . . 4 Melee Attacks . | . . . Impact . | . . . Slashing . | . . . Piercing . | . . . Sneak Attacks . | . . . Combat Hostiles . | . . . Follow-up Attacks . | . . . Damage Inflicted 1087 | . 403 684 Guns . | . . . Cannons 1084 | . 403 681 Explosions . | . . . Melee . | . . . Ramming 3 | . . 3 Kinetic 1084 | . 403 681 Thermal . | . . . Explosive . | . . . Electromagnetic . | . . . Impact . | . . . Slashing . | . . . Piercing . | . . . Highest Corruption . | . . . Average Corruption . | . . . Corruption Purged . | . . . Corruption Blocked . | . . . Overload Shots . | . . . Overflow Damage . | . . . Projectiles . | . . . Explosions . | . . . Melee . | . . . Knockbacks 13 | . 4 9 Impact . | . . . Kinetic 12 | . 3 9 Secondary 1 | . 1 . Self-Inflicted Damage . | . . . Shots . | . . . Rammed . | . . . Targets Rammed 1 | . . 1 Kicked 1 | . . 1 Crushed . | . . . Highest Temperature 82 | . 75 82 Average Temperature 26 | . 25 27 Received Heat Transfer 267 | . 93 174 Siege Activations . | . . . Robots Corrupted . | . . . Combat Hostiles . | . . . Parts Fried . | . . . Impact Corruptions . | . . . Robots Melted . | . . . Combat Hostiles . | . . . Parts Melted . | . . . Heat Transferred . | . . . Parts Sabotaged . | . . . Parts Stolen . | . . . Parts Stripped . | . . . Power Chain Reactions . | . . . Alert | -11 -10 -10 ------- Run | Yrd Mat Min Peak Influence 278 | . 269 278 Initial 49 | . . 49 Average 110 | . 90 130 Maximum Alert Level 1 | . 1 1 Low Security (%) 89 | . 87 91 Level 1 10 | . 12 8 Level 2 . | . . . Level 3 . | . . . Level 4 . | . . . Level 5 . | . . . High Security . | . . . Max Security . | . . . Squads Dispatched 2 | . 2 . Investigation 1 | . 1 . Extermination . | . . . Reinforcement 1 | . 1 . Assault . | . . . Garrison . | . . . Intercept . | . . . Searches Triggered . | . . . Construction Impeded . | . . . Haulers Reinforced . | . . . Active Scanning Responses . | . . . Cargo Convoy Interrupts . | . . . Stealth | -11 -10 -10 --------- Run | Yrd Mat Min Distress Signals 2 | . 1 1 Communications Jammed . | . . . Distress Signals . | . . . Times Spotted 26 | . 15 11 Peak Tracking Total 5 | . 2 5 Tactical Retreats . | . . . Traps | -11 -10 -10 ------- Run | Yrd Mat Min Traps Triggered . | . . . Indirectly . | . . . Trap Hack Attempts . | . . . Triggered . | . . . Disarmed . | . . . Reprogrammed . | . . . Reused . | . . . Traps Extracted . | . . . Installed . | . . . Triggered . | . . . Machines | -11 -10 -10 ---------- Run | Yrd Mat Min Machines Disabled 2 | . . 2 Max in Single Turn 1 | . . 1 Machines Repaired . | . . . Machines Dismantled . | . . . Machines Sabotaged . | . . . Overloaded Fab Kills . | . . . Hacking | -11 -10 -10 --------- Run | Yrd Mat Min Machines Accessed 5 | . 4 1 Terminals 3 | . 3 . Fabricators . | . . . Repair Stations . | . . . Recycling Units 1 | . 1 . Scanalyzers . | . . . Garrison Access . | . . . Total Hacks 11 | . 10 1 Successful 5 | . 4 1 Failed 6 | . 6 . Catastrophic 1 | . 1 . Database Lockouts . | . . . Manual 6 | . 6 . Terminals 9 | . 9 . Fabricators . | . . . Repair Stations . | . . . Recycling Units 1 | . 1 . Scanalyzers . | . . . Garrison Access . | . . . Terminal Hacks 4 | . 3 1 Part Schematic 1 | . 1 . Robot Analysis 1 | . 1 . Open Door 1 | . . 1 Maintenance Status 1 | . 1 . Fabricator Hacks . | . . . Repair Station Hacks . | . . . Recycling Unit Hacks . | . . . Scanalyzer . | . . . Garrison Access Hacks . | . . . Unauthorized Hacks 1 | . 1 . Terminals . | . . . Fabricators . | . . . Repair Stations . | . . . Recycling Units 1 | . 1 . Tunnel 1 | . 1 . Scanalyzers . | . . . Garrison Access . | . . . Data Cores Recovered . | . . . Used . | . . . Hacking Detections 3 | . 3 . Full Trace Events . | . . . Feedback Events . | . . . Feedback Blocked . | . . . Robot Schematics Acquired . | . . . Robots Built . | . . . Authchips . | . . . Time . | . . . Total Robot Build Rating . | . . . Part Schematics Acquired 1 | . 1 . Parts Built . | . . . Authchips . | . . . Time . | . . . Total Part Build Rating . | . . . Parts Repaired . | . . . Time . | . . . Parts Recycled . | . . . Recycled Matter . | . . . Retrieved Matter . | . . . Retrieved Components . | . . . Parts Scanalyzed . | . . . Part Schematics Acquired . | . . . Parts Damaged . | . . . Bothacking | -11 -10 -10 ------------ Run | Yrd Mat Min Used RIF Installer . | . . . Robots Hacked . | . . . Non-combat . | . . . Combat . | . . . Robot Hacks Applied . | . . . Relay Couplers Released . | . . . Fabnet Peak Effective % . | . . . Robots Rewired . | . . . Allies Hacked . | . . . Hacks Repelled . | . . . Allies | -11 -10 -10 -------- Run | Yrd Mat Min Total Allies . | . . . Largest Group . | . . . Highest-Rated Group . | . . . Highest-Rated Ally . | . . . Total Orders . | . . . Ally Attacks . | . . . Total Damage . | . . . Kills . | . . . Allies Corrupted . | . . . Allies Melted . | . . . Intel | -11 -10 -10 ------- Run | Yrd Mat Min Robot Analysis Total 1 | . 1 . Derelict Logs Recovered 2 | . . 2 Drone Launches . | . . . Drone Recoveries . | . . . Exploration | -11 -10 -10 ------------- Run | Yrd Mat Min Turns Passed 887 | . 453 434 Spaces Moved 516 | 1 298 217 Core . | . . . Treads . | . . . Legs 516 | 1 298 217 Wheels . | . . . Hover . | . . . Flight . | . . . Fastest Speed 120 | 120 120 120 Average Speed 125 | 120 120 134 Slowest Speed 190 | 120 120 190 Overloaded Moves . | . . . Propulsion Burnouts . | . . . Robots Hopped . | . . . Cave-ins Triggered . | . . . Exploration Rate (%) 42 | 1 56 70 Regions Visited 2 Branch Regions 1 Pre-discovered Areas 2 | . 1 1 Known Exits Taken . | . . . Unknown Exits Taken 2 | 1 1 . Scrap Searched 1 | . . 1 Spaces Dug . | . . . Terrain Destroyed 5 | . . 5 Melee . | . . . Projectile 5 | . . 5 AOE . | . . . Terrain Rammed . | . . . Walls Destroyed . | . . . Machines Disabled . | . . . Actions | -11 -10 -10 --------- Run | Yrd Mat Min Total 631 | . 348 283 Wait 24 | . 13 11 Move 514 | . 297 217 Hop . | . . . Pick Up 4 | . 4 . Fast Attach 6 | . 4 2 Attach 2 | . . 2 Detach 5 | . 2 3 Swap 3 | . 1 2 Drop 6 | . 4 2 Fire 66 | . 23 43 Melee . | . . . Ram . | . . . Kick 1 | . . 1 Crush . | . . . Escape Stasis . | . . . Rewire . | . . . Trap . | . . . Miscellaneous . | . . . Route ------- -11/Scrapyard -10/Materials (discovered 2 exits: [*Mat] / *Min) -10/Mines (discovered 1 exit: [*Mat]) History --------- Turn | Location | Event 1 | -11/Scrapyard | Discovered new exit (range 0) 1 | -11/Scrapyard | Entered Materials 167 | -10/Materials | Discovered new exit (range 15) 317 | -10/Materials | Build established: Mutant 351 | -10/Materials | Discovered new exit (range 8) 454 | -10/Materials | Entered Mines 489 | -10/Mines | Learned location of Zion (-6) 518 | -10/Mines | Found the Drone Emporium 525 | -10/Mines | Found Prototype Device 525 | -10/Mines | Identified Thief Drone Bay 665 | -10/Mines | Learned Materials garrison access intel 752 | -10/Mines | Excavation squad dispatched 752 | -10/Mines | A large section of the Mines collapsed 842 | -10/Mines | Discovered new exit (range 7) 874 | -10/Mines | Core integrity fell below 50% 883 | -10/Mines | Core integrity fell below 20% 888 | -10/Mines | Destroyed by as-46371 with Assembled Blade Last Messages --------------- 00820_ T-07 Excavator is excavating. 00821_ G-34 Mercenary destroyed. 00823_ Kicked T-07 Excavator out of the way. 00824_ T-07 Excavator sends out distress signal. 00824_ Acquired 6 matter. 00830_ G-34 Mercenary knocked back. 00834_ G-34 Mercenary Sml. Laser blasted off. 00834_ G-34 Mercenary destroyed. 00838_ Acquired 35 matter. 00842_ Acquired 6 matter. 00842_ EXIT=FOUND 00861_ T-07 Excavator destroyed. 00863_ Y-45 Defender Imp. Ion Engine blasted off. 00867_ Y-45 Defender destroyed. 00869_ as-46371 knocked back. 00873_ Y-45 Defender Lgt. Treads blasted off. 00876_ Critical hit (Burn: +37). 00881_ Lgt. Cannon destroyed. 00885_ Y-45 Defender destroyed. 00888_ Ion Engine destroyed. Map ----- +----------------------------------------------------+ | ?# #??????????????????????????????????????? | | ?# #??????????????????????????????????????? | | ?# #??????????????????????????????????????? | | ?# #??????????????????????????????????????? | | ?# #??????????????????????????????????????? | | ?# #??????????????????????????????????????? | | ## #??????????????????????????????????????? | | #??????????????????????????????????????? | | #??????????????????????????????????????? | | #####??????????????????????????????????????? | | ???????????????????????????????????????????? | | ????#??????????????????????????????????????? | | #??????????????????????????????????????? | | #??????????????????????????????????????? | | ?????????????????????????????????? | | "????????????????????????????????? | | ## ##### "????????????????????????????????? | | #? #????????????????????####???????????????? | | ???#???????????????????## ##??????????????? | | ## #???????????????????# #??????????????? | | ???????????????###? ##?????????????? | | #??????????????????##"%## ###???????????? | | ???????????????????#"" =#% ##??????????? | | ???????????????????#!!=%+! #??????????? | | ???????????????????#!! %;* < ##?????????? | | ???????????????????#"" #@ % #?????????? | | ???????????????????##"??# a #?????????? | | ????????????????????????###% !|##?????????? | | ??????????????????????????## =!=#??????????? | | ##?????????????????????????####%#??????????? | | ###??????????????????????????#=#??????????? | | ####???????????????????????# #??????????? | | ##????????????????????###=#??????????? | | #????????????????????#==[#??????????? | | #??????????????????###*#%#??????????? | | #??????????????????# #!%##??????????? | | #???????????????????#" [#???????????? | | #???????????????????## ##???????????? | | #?????????????????????# ##???????????? | | ##??????????????????#### ###?????????? | | ##?????????????????## # ##????????? | | #?????????????????# # ## #????????? | | #?????????????????# # ## #????????? | | # ##?????????????????## ### ##????????? | | #### #????????????####???# # ##?????????? | | #### #######?????## ##??# #####??????????? | | % # ! * #?????# #??# #??????????????? | | ""% #?????# ##?# #??????????????? | | ""%###### ####### ### ##?????????????? | | "!*?????# #?????????????? | +----------------------------------------------------+ Best States ------------- Heat Dissipation 25 Energy Generation 10 Energy Capacity 250 Matter Stores 300 Matter Capacity 300 Sight Range 16 Terrain Scan Density 10 Propulsion Shielding 33 Evasion (%) 55 Item Schematics ----------------- Heat Sink | -10/Materials | Hacked Robot Schematics ------------------ None Fabricated ------------ Nothing Alien Tech Used ----------------- None Achievements -------------- None Challenges ------------ None Game ------ Seed HybridSapperAutocannon Manual? 0 Play Time 00:08:30 Cumulative 272.3 hours Start 2024.04.02 @ 23:19:40 End 2024.04.02 @ 23:25:25 Sessions 1 Manual Loads 0 Difficulty Rogue Special Mode None Game No. 352 Rogue 352 Adventurer 0 Explorer 0 Win Type - Total 9 Types 8/0/0/1/0/0/0/0/0 Lore% 83 Gallery% 89 Achievement% 71 Wizard Run 0 Options --------- Layout 0 ASCII 0 Keyboard 0 Movement Numpad Keybinds 0 Fullscreen 2 Font 18/SmallcapsGlow Map View 76x50 Zoom Use 0% Tactical HUD 1 Map Filters NONE Filters NONE Steam 1 RUN: 0eefc797-f400-4b6e-9700-d9d399092f1e